fUST/lending_fUST_20240809
["ID","MTS","AMOUNT","RATE_DAILY","PERIOD"]
[334483252,1723156242516,-160.64700877,0.00026583,2]
[334483253,1723156242525,-500.0,0.00026583,2]
[334483254,1723156242535,-1363.91466198,0.00026589,2]
[334483255,1723156242544,-881.97401853,0.00026589,2]
[334483256,1723156242553,-2605.08504403,0.00026589,2]
[334483257,1723156242562,-151.0,0.00026608,7]
[334483258,1723156242572,-151.0,0.00026608,7]
[334483259,1723156242582,-151.0,0.00026608,7]
[334483260,1723156242591,-151.0,0.00026608,7]
[334483261,1723156242604,-176.526805,0.00026608,7]
[334483262,1723156242618,-176.526805,0.00026608,7]
[334483263,1723156242627,-151.0,0.00026608,7]
[334483264,1723156242637,-210.0717,0.00026608,7]
[334483265,1723156242647,-210.0717,0.00026608,7]
[334483266,1723156242656,-60381.87906581,0.00026608,3]
[334483267,1723156242665,-150.0,0.00026648,2]
[334483268,1723156242674,-150.112233,0.000267,6]
[334483269,1723156242683,-5128.19474419,0.00026726,2]
[334483270,1723156242692,-151.0,0.00026726,7]
[334483272,1723156242701,-151.0,0.00026726,7]
[334483274,1723156242711,-151.0,0.00026726,7]
[334483276,1723156242720,-34890.1212277,0.0002689,3]
[334483277,1723156242729,-3000.0,0.000269,2]
[334483278,1723156242738,-17996.0413967,0.000269,2]
[334483279,1723156242748,-3000.0,0.0002691,2]
[334483280,1723156242757,-150.0,0.00026918,2]
[334483281,1723156242766,-3000.0,0.0002692,2]
[334483282,1723156242775,-3000.0,0.0002693,2]
[334483283,1723156242785,-2000.0,0.0002693,2]
[334483284,1723156242794,-3000.0,0.0002694,2]
[334483285,1723156242804,-3000.0,0.0002695,2]
[334483286,1723156242813,-3000.0,0.0002696,2]
[334483288,1723156242960,-2005.0,0.00026969,10]
[334483289,1723156242973,-3000.0,0.0002697,2]
[334483290,1723156242985,-200.0,0.00026973,2]
[334483291,1723156242995,-3000.0,0.0002698,2]
[334483292,1723156243005,-3000.0,0.0002699,2]
[334483293,1723156243015,-34890.1212277,0.0002699,3]
[334483294,1723156243024,-8229.82761588,0.00027,20]
[334483295,1723156243285,-1034.97648217,0.00027,20]
[334483296,1723156243294,-935.55067333,0.00027,2]
[334483297,1723156243307,-326.85566767,0.00027,2]
[334483298,1723156243317,-3000.0,0.00027,2]
[334483299,1723156243327,-277.0,0.00027,2]
[334483300,1723156243336,-26995.14242386,0.00027,7]
[334483329,1723156246517,-579.18404091,0.00023989,2]
[334483331,1723156246527,-500.0,0.00023989,2]
[334483332,1723156246536,-579.18404091,0.00023989,2]
[334483333,1723156246546,-500.0,0.00023989,2]
[334483335,1723156246555,-579.18404091,0.00023989,2]
[334483337,1723156246565,-392.91160055,0.00023989,2]
[334483339,1723156246576,-186.27244036,0.00023989,2]
[334483341,1723156246586,-500.0,0.00023989,2]
[334483343,1723156246596,-579.18404091,0.00023989,2]
[334483344,1723156246612,-500.0,0.00023989,2]
[334483345,1723156246625,-579.18404091,0.00023989,2]
[334483346,1723156246635,-500.0,0.00023989,2]
[334483347,1723156246644,-500.0,0.00023989,2]
[334483348,1723156246654,-500.0,0.00023989,2]
[334483349,1723156246663,-354.51187039,0.00023989,2]
[334483350,1723156246675,-224.67217052,0.00023989,2]
[334483351,1723156246684,-579.18404091,0.00023989,2]
[334483352,1723156246694,-500.0,0.00023989,2]
[334483353,1723156246703,-130.36788791,0.00023989,2]
[334483354,1723156256176,1109.36970541,0.00015,2]
[334483355,1723156270879,273.37336231,9.9e-05,2]
[334483356,1723156275886,-942.61257937,0.0001818,2]
[334483357,1723156275914,-277.18370616,0.0001818,2]
[334483358,1723156275936,-183.10678503,0.0001818,2]
[334483359,1723156275959,-157.83841247,0.0001818,2]
[334483360,1723156275985,-412.65409184,0.00019451,2]
[334483361,1723156276011,-300.0,0.00019997,2]
[334483362,1723156276198,154.79103211,0.0001818,2]
[334483363,1723156278362,160.19468673,0.0001818,2]
[334483364,1723156279290,342.05014288,0.0001818,2]
[334483365,1723156279495,156.73199194,0.0001818,2]
[334483366,1723156280079,532.27882907,0.0001818,2]
[334483367,1723156280741,987.82646631,0.0001818,2]
[334483368,1723156282900,204.26455566,0.0001818,2]
[334483369,1723156285099,522.39318645,0.00018182,2]
[334483370,1723156286574,854.28479285,0.00019998,2]
[334483371,1723156289413,511.78874113,0.00018182,2]
[334483372,1723156301919,254.1736609,9.9e-05,2]
[334483373,1723156308618,165.453052,0.00014247,2]
[334483374,1723156323630,-300.0,0.0001818,2]
[334483375,1723156323652,-503.65762201,0.00018182,2]
[334483376,1723156323680,-454.03187958,0.00018182,2]
[334483377,1723156323702,-971.82472248,0.00018182,2]
[334483378,1723156323723,-301.05042954,0.00018182,2]
[334483379,1723156323746,-494.46439567,0.00018182,2]
[334483380,1723156323769,-1109.36970541,0.00018182,2]
[334483381,1723156323791,-235.47715672,0.00018182,2]
[334483382,1723156323812,-156.73199194,0.00018182,2]
[334483383,1723156323833,-494.46439567,0.00018182,2]
[334483384,1723156343782,1025.83587193,0.00017269,2]
[334483385,1723156358411,-965.66899378,0.00017269,2]
[334483386,1723156358442,-500.0,0.00019998,2]
[334483387,1723156358471,-500.0,0.00019998,2]
[334483388,1723156358498,-500.0,0.00019998,2]
[334483389,1723156358522,-500.0,0.00019998,2]
[334483390,1723156358550,-500.0,0.00019998,2]
[334483391,1723156358580,-500.0,0.00019998,2]
[334483392,1723156358608,-500.0,0.00019998,2]
[334483393,1723156358639,-500.0,0.00019998,2]
[334483394,1723156358667,-500.0,0.00019998,2]
[334483395,1723156358696,-500.0,0.00019998,2]
[334483396,1723156358725,-546.90817095,0.00019998,2]
[334483397,1723156358755,-500.0,0.00019998,2]
[334483398,1723156358783,-156.42647328,0.0002,2]
[334483399,1723156358811,-508.95861788,0.0002,2]
[334483400,1723156358838,-294.2333485,0.0002,2]
[334483401,1723156362231,27.80439561,0.00017269,2]
[334483402,1723156391471,-584.13318098,0.00017269,2]
[334483403,1723156391495,-7415.86681902,0.00017269,2]
[334483404,1723156416039,-300.48712991,0.00017019,2]
[334483405,1723156416061,-187.98415753,0.00017019,2]
[334483406,1723156416083,-655.0412718,0.00017019,2]
[334483407,1723156416104,-250.00815708,0.00017269,2]
[334483408,1723156416126,-182.30120802,0.00017269,2]
[334483409,1723156416148,-156.42647328,0.0002,2]
[334483412,1723156797898,206.553715,0.00014247,2]
[334483422,1723157299726,239.20865639,9.9e-05,2]
[334483429,1723157364550,166.006384,0.00014247,2]
[334483476,1723157433049,-272.63958779,0.00015623,2]
[334483479,1723157433063,-14973.948,0.00015623,2]
[334483535,1723157438619,-9653.41241221,0.00015623,2]
[334483536,1723157438629,-7001.07154863,0.00015851,2]
[334483537,1723157438638,-209.14855116,0.00015851,2]
[334483538,1723157438647,-1678.2382852,0.00015863,2]
[334483539,1723157438656,-300.0,0.00015953,2]
[334483540,1723157438666,-300.0,0.00015953,2]
[334483541,1723157438676,-3088.06064461,0.00015954,2]
[334483542,1723157438685,-154.79103211,0.00015954,2]
[334483543,1723157438694,-522.54920575,0.00015954,2]
[334483544,1723157438703,-160.660983,0.00015982,2]
[334483545,1723157438713,-1668.36277103,0.00016095,2]
[334483546,1723157438722,-5238.95624179,0.00016095,2]
[334483547,1723157438732,-301.05042954,0.0001611,2]
[334483548,1723157438741,-2778.62474222,0.0001611,2]
[334483549,1723157438750,-183.10678503,0.0001611,2]
[334483550,1723157438760,-652.18280773,0.00016159,2]
[334483551,1723157438769,-424.7108497,0.00016159,2]
[334483552,1723157438778,-694.1093999,0.00016159,2]
[334483553,1723157438788,-160.660983,0.00016191,2]
[334483554,1723157438797,-532.27882907,0.00016309,2]
[334483555,1723157438810,-269.80506811,0.00016309,2]
[334483556,1723157438819,-160.1642143,0.00016347,2]
[334483557,1723157438830,-413.37991264,0.00016347,2]
[334483558,1723157438840,-375.39717836,0.00016347,2]
[334483559,1723157438849,-160.660983,0.00016399,2]
[334483560,1723157438859,-307.670749,0.00016415,2]
[334483562,1723157438868,-160.660983,0.00016607,2]
[334483564,1723157438877,-160.660983,0.00016815,2]
[334483565,1723157438886,-912.4763458,0.00017269,2]
[334483566,1723157438895,-420.0,0.00017548,2]
[334483567,1723157438904,-364.26273512,0.00018518,2]
[334483568,1723157438913,-500.0,0.00018518,2]
[334483569,1723157438922,-478.65715473,0.00018518,2]
[334483570,1723157438931,-500.0,0.00018518,2]
[334483571,1723157438940,-161.22621686,0.00018518,2]
[334483572,1723157438950,-500.0,0.00018518,2]
[334483573,1723157438960,-500.0,0.00018518,2]
[334483574,1723157438969,-500.0,0.00018518,2]
[334483575,1723157438978,-500.0,0.00018518,2]
[334483576,1723157438988,-334.69081709,0.00018518,2]
[334483577,1723157438997,-500.0,0.00018518,2]
[334483578,1723157439007,-500.0,0.00018518,2]
[334483579,1723157439016,-500.0,0.00018518,2]
[334483580,1723157439024,-500.0,0.00018518,2]
[334483581,1723157439033,-500.0,0.00018518,2]
[334483582,1723157439042,-500.0,0.00018518,2]
[334483583,1723157439051,-500.0,0.00018518,2]
[334483584,1723157439063,-500.0,0.00018518,2]
[334483585,1723157439073,-500.0,0.00018518,2]
[334483586,1723157439082,-500.0,0.00018518,2]
[334483587,1723157439091,-500.0,0.00018518,2]
[334483588,1723157439100,-500.0,0.00018518,2]
[334483589,1723157439109,-500.0,0.00018518,2]
[334483590,1723157439120,-430.01795604,0.00018518,2]
[334483591,1723157439132,-500.0,0.00018518,2]
[334483592,1723157439141,-500.0,0.00018518,2]
[334483593,1723157439152,-500.0,0.00018518,2]
[334483594,1723157439161,-500.0,0.00018518,2]
[334483595,1723157439172,-500.0,0.00018518,2]
[334483596,1723157439182,-500.0,0.00018518,2]
[334483597,1723157439192,-500.0,0.00018518,2]
[334483598,1723157439203,-500.0,0.00018518,2]
[334483599,1723157439212,-6160.65649733,0.00018519,2]
[334483600,1723157439222,-270.89378798,0.00018619,2]
[334483601,1723157439232,-555.1776351,0.00018969,2]
[334483602,1723157439243,-250.0,0.00019041,2]
[334483603,1723157439254,-166.026159,0.00019178,2]
[334483604,1723157439267,-168.516465,0.00019192,2]
[334483605,1723157439276,-587.0,0.00019303,2]
[334483606,1723157439286,-154.79103211,0.00019547,2]
[334483607,1723157439296,-711.91,0.0001998,3]
[334483608,1723157439306,-355.95,0.0001998,3]
[334483609,1723157439316,-177.98,0.0001998,3]
[334483610,1723157439326,-37362.3007319,0.0001999,2]
[334483611,1723157439335,-2005.0,0.00019999,10]
[334483612,1723157439347,-2005.0,0.00019999,10]
[334483613,1723157439356,-1626.61800287,0.0002,2]
[334483614,1723157439366,-12896.18570859,0.0002,2]
[334483615,1723157439376,-10490.66665029,0.0002,2]
[334483616,1723157439385,-4183.4711297,0.0002,2]
[334483617,1723157439394,-171.36374316,0.0002,2]
[334483618,1723157439403,-294.2333485,0.0002,2]
[334483619,1723157439412,-154.79103211,0.0002,2]
[334483620,1723157439422,-215.00533212,0.0002,2]
[334483621,1723157439432,-1444.35779383,0.0002,2]
[334483622,1723157439441,-427.19488527,0.0002,2]
[334483623,1723157439451,-545.76851484,0.0002,2]
[334483624,1723157439463,-154.94664795,0.0002,2]
[334483625,1723157439472,-157.91149328,0.0002,2]
[334483626,1723157439481,-435.0,0.0002,2]
[334483627,1723157439490,-150.112233,0.0002,2]
[334483628,1723157439499,-2005.0,0.00020472,10]
[334483629,1723157439508,-206.553715,0.00020707,2]
[334483630,1723157439518,-297.10158311,0.00021,2]
[334483631,1723157439527,-150.112233,0.000211,3]
[334483632,1723157439537,-823.0,0.00021233,2]
[334483633,1723157439546,-1000.0,0.00021309,2]
[334483634,1723157439555,-1423.82,0.0002135,3]
[334483635,1723157439567,-711.9,0.0002135,3]
[334483636,1723157439576,-355.96,0.0002135,3]
[334483637,1723157439585,-154.79103211,0.00021589,2]
[334483638,1723157439595,-6160.65649733,0.0002173,2]
[334483639,1723157439605,-494.46439567,0.00021906,2]
[334483640,1723157439615,-154.80649189,0.00021916,2]
[334483641,1723157439624,-333.19323305,0.00022,2]
[334483642,1723157439633,-173.0,0.00022,2]
[334483643,1723157439642,-150.112233,0.000221,5]
[334483644,1723157439651,-881.97401853,0.0002217,2]
[334483646,1723157439661,-620.85969929,0.0002268,2]
[334483647,1723157439670,-963.83778412,0.0002268,2]
[334483648,1723157439679,-172.17444394,0.00023,2]
[334483649,1723157439688,-173.0,0.00023014,2]
[334483650,1723157439698,-150.112233,0.000232,4]
[334483651,1723157439707,-5261.47013064,0.00023309,2]
[334483652,1723157439716,-1152.0,0.00023357,2]
[334483653,1723157439726,-5261.47013064,0.00023627,2]
[334483654,1723157439735,-620.04298496,0.00023814,2]
[334483655,1723157439744,-637.19188921,0.00023814,2]
[334483656,1723157439754,-5261.47013064,0.00023966,2]
[334483657,1723157439763,-4350.92455896,0.00024,30]
[334483658,1723157439772,-58981.7018185,0.00024015,11]
[334483659,1723157439782,-37362.3007319,0.00024015,3]
[334483661,1723157439791,-17996.04139673,0.00024025,2]
[334483662,1723157439800,-173.0,0.00024164,2]
[334483663,1723157439813,-150.112233,0.000242,4]
[334483664,1723157439822,-198.55798383,0.00024218,2]
[334483665,1723157439831,-320.06058595,0.00024218,2]
[334483666,1723157439841,-500.0,0.00024218,2]
[334483667,1723157439850,-260.79126149,0.00024218,2]
[334483668,1723157439859,-516.52795607,0.00024218,2]
[334483669,1723157439869,-500.0,0.00024218,2]
[334483670,1723157439878,-500.0,0.00024218,2]
[334483671,1723157439887,-516.52795607,0.00024218,2]
[334483672,1723157439896,-500.0,0.00024218,2]
[334483673,1723157439905,-500.0,0.00024218,2]
[334483674,1723157439915,-516.52795607,0.00024218,2]
[334483675,1723157439927,-516.52795607,0.00024218,2]
[334483676,1723157439939,-516.52795607,0.00024218,2]
[334483677,1723157439949,-516.52795607,0.00024218,2]
[334483678,1723157439961,-375.28844118,0.00024218,2]
[334483679,1723157439970,-516.52795607,0.00024218,2]
[334483680,1723157439979,-500.0,0.00024218,2]
[334483681,1723157439988,-516.52795607,0.00024218,2]
[334483682,1723157439997,-500.0,0.00024218,2]
[334483683,1723157440006,-516.52795607,0.00024218,2]
[334483684,1723157440015,-516.52795607,0.00024218,2]
[334483685,1723157440024,-516.52795607,0.00024218,2]
[334483686,1723157440033,-37362.3007319,0.00024219,3]
[334483687,1723157440043,-5261.47013064,0.00024301,2]
[334483688,1723157440052,-2605.08504403,0.000245,2]
[334483689,1723157440065,-5261.47013064,0.00024562,2]
[334483690,1723157440075,-37362.3007319,0.00024734,3]
[334483691,1723157440084,-17996.0413967,0.00024744,2]
[334483692,1723157440093,-5261.47013064,0.00024818,2]
[334483693,1723157440103,-153.0,0.00024821,2]
[334483694,1723157440113,-6160.65649733,0.00024941,2]
[334483695,1723157440122,-37362.3007319,0.00024979,3]
[334483696,1723157440132,-37362.3007319,0.0002498,3]
[334483697,1723157440141,-37362.3007319,0.0002499,3]
[334483698,1723157440150,-3599.85896249,0.00024997,2]
[334483699,1723157440159,-500.0,0.00025,2]
[334483700,1723157440169,-1363.91466198,0.00025,2]
[334483701,1723157440179,-23201.42953338,0.00025,30]
[334483702,1723157440188,-299.4439556,0.00025,2]
[334483703,1723157440197,-150.112233,0.00025,2]
[334483704,1723157440206,-620.00214925,0.00025005,2]
[334483705,1723157440217,-620.85959446,0.00025005,2]
[334483706,1723157440227,-5261.47013064,0.00025182,2]
[334483707,1723157440236,-153.0,0.00025229,2]
[334483708,1723157440248,-153.0,0.00025229,2]
[334483709,1723157440259,-153.0,0.00025229,2]
[334483710,1723157440269,-153.0,0.00025229,2]
[334483711,1723157440278,-153.0,0.00025229,2]
[334483712,1723157440288,-153.0,0.00025229,2]
[334483713,1723157440297,-153.0,0.00025229,2]
[334483714,1723157440305,-153.0,0.00025229,2]
[334483715,1723157440321,-153.0,0.00025229,2]
[334483716,1723157440333,-153.0,0.00025229,2]
[334483717,1723157440343,-153.0,0.00025229,2]
[334483718,1723157440352,-153.0,0.00025229,2]
[334483719,1723157440361,-153.0,0.00025229,2]
[334483720,1723157440371,-153.0,0.00025229,2]
[334483721,1723157440380,-153.0,0.00025229,2]
[334483722,1723157440390,-153.0,0.00025229,2]
[334483723,1723157440399,-153.0,0.00025229,2]
[334483724,1723157440408,-150.112233,0.000253,10]
[334483725,1723157440418,-5261.47013064,0.00025318,2]
[334483726,1723157440427,-150.112233,0.000254,10]
[334483727,1723157440436,-17996.0413967,0.00025463,2]
[334483728,1723157440446,-5261.47013064,0.00025582,2]
[334483729,1723157440455,-306.0,0.00025616,2]
[334483730,1723157440464,-414.343453,0.00025753,2]
[334483731,1723157440474,-2000.0,0.00025769,2]
[334483732,1723157440483,-150.112233,0.000258,8]
[334483733,1723157440492,-5261.47013064,0.00025857,2]
[334483734,1723157440501,-5000.0,0.00026,4]
[334483735,1723157440510,-200.0,0.00026027,2]
[334483736,1723157440519,-150.0,0.00026115,2]
[334483737,1723157440528,-5261.47013064,0.00026124,2]
[334483738,1723157440537,-17996.0413967,0.00026181,2]
[334483739,1723157440547,-150.112233,0.000262,10]
[334483740,1723157440562,-620.00010746,0.00026255,2]
[334483741,1723157440573,-620.04297972,0.00026255,2]
[334483742,1723157440584,-530.73,0.00026285,2]
[334483743,1723157440593,-150.112233,0.000263,10]
[334483744,1723157440602,-402.58073778,0.00026304,2]
[334483745,1723157440612,-160.64700877,0.00026375,2]
[334483746,1723157440622,-5261.47013064,0.00026386,2]
[334483747,1723157440631,-166.006384,0.00026521,2]
[334483748,1723157440640,-150.0,0.00026552,2]
[334483749,1723157440651,-173.0,0.00026581,2]
[334483750,1723157440660,-150.112233,0.000266,7]
[334483751,1723157440669,-5261.47013068,0.00026674,2]
[334483752,1723157440678,-150.0,0.00026726,2]
[334483753,1723157440688,-3000.0,0.000269,2]
[334483754,1723157440697,-17996.0413967,0.000269,2]
[334483755,1723157440707,-3000.0,0.0002691,2]
[334483756,1723157440716,-3000.0,0.0002692,2]
[334483757,1723157440725,-3000.0,0.0002693,2]
[334483758,1723157440734,-3000.0,0.0002694,2]
[334483759,1723157440743,-151.47142851,0.00026946,2]
[334483760,1723157440753,-3000.0,0.0002695,2]
[334483761,1723157440762,-3000.0,0.0002696,2]
[334483762,1723157440771,-3000.0,0.0002697,2]
[334483763,1723157440781,-3000.0,0.0002698,2]
[334483764,1723157440790,-3000.0,0.0002699,2]
[334483765,1723157440799,-8976.17864892,0.00027,7]
[334483766,1723157441091,-1944.51204392,0.00027,7]
[334483789,1723157443482,-154.79103211,0.00015952,2]
[334483790,1723157443492,-160.64700877,0.00026375,2]
[334483791,1723157443502,-7998.34552629,0.00027,7]
[334483794,1723157443662,-24909.07933671,0.00027,7]
[334483795,1723157443672,-33074.33382172,0.00027,5]
[334483796,1723157443682,-3229.82761588,0.00027,20]
[334483797,1723157443692,-150.112233,0.00027,7]
[334483798,1723157443701,-3000.0,0.00027,2]
[334483799,1723157443712,-243.0,0.00027,2]
[334483800,1723157443722,-151.0,0.00027,7]
[334483801,1723157443732,-151.661857,0.00027,7]
[334483802,1723157443742,-3000.0,0.0002701,2]
[334483803,1723157443751,-3000.0,0.0002702,2]
[334483804,1723157443761,-3000.0,0.0002703,2]
[334483805,1723157443771,-3000.0,0.0002704,2]
[334483806,1723157443781,-3000.0,0.0002705,2]
[334483807,1723157443791,-3000.0,0.0002706,2]
[334483808,1723157443800,-151.0,0.0002706,7]
[334483809,1723157443811,-151.0,0.0002706,7]
[334483810,1723157443821,-176.526805,0.0002706,7]
[334483811,1723157443831,-176.526805,0.0002706,7]
[334483812,1723157443840,-151.0,0.0002706,7]
[334483813,1723157443849,-151.0,0.0002706,7]
[334483814,1723157443859,-151.0,0.0002706,7]
[334483815,1723157443868,-225.1717,0.0002706,7]
[334483816,1723157443878,-225.1717,0.0002706,7]
[334483817,1723157443888,-26652.1629633,0.00027069,2]
[334483818,1723157443898,-151.0,0.00027069,7]
[334483819,1723157443907,-151.0,0.00027069,7]
[334483820,1723157443917,-151.0,0.00027069,2]
[334483821,1723157443927,-151.0,0.00027069,7]
[334483822,1723157443937,-151.0,0.00027069,7]
[334483823,1723157443946,-213.479005,0.00027069,7]
[334483824,1723157443955,-151.445866,0.00027069,7]
[334483825,1723157443965,-213.479005,0.00027069,7]
[334483826,1723157443974,-151.0,0.00027069,7]
[334483827,1723157443984,-151.0,0.00027069,7]
[334483828,1723157443993,-151.0,0.00027069,7]
[334483829,1723157444003,-168.878984,0.00027069,7]
[334483830,1723157444012,-168.878984,0.00027069,7]
[334483831,1723157444023,-151.0,0.00027069,2]
[334483832,1723157444032,-151.0,0.00027069,7]
[334483833,1723157444042,-151.0,0.00027069,7]
[334483834,1723157444051,-151.0,0.00027069,7]
[334483835,1723157444064,-151.0,0.00027069,7]
[334483836,1723157444073,-296.42748,0.00027069,7]
[334483837,1723157444083,-151.0,0.00027069,7]
[334483838,1723157444093,-151.0,0.00027069,7]
[334483839,1723157444103,-151.0,0.00027069,7]
[334483840,1723157444115,-151.0,0.00027069,7]
[334483841,1723157444124,-151.0,0.00027069,7]
[334483842,1723157444134,-151.0,0.00027069,7]
[334483843,1723157444144,-3000.0,0.0002707,2]
[334483844,1723157444154,-3000.0,0.0002708,2]
[334483845,1723157444164,-3000.0,0.0002709,2]
[334483846,1723157444174,-755.28461468,0.0002709,2]
[334483847,1723157444183,-3000.0,0.000271,2]
[334483848,1723157444397,-3000.0,0.0002711,2]
[334483849,1723157444407,-3000.0,0.0002712,2]
[334483850,1723157444416,-189.63844992,0.00027123,2]
[334483851,1723157444426,-3000.0,0.0002713,2]
[334483852,1723157444435,-5167.484129,0.0002714,2]
[334483853,1723157444445,-206.553715,0.00027167,2]
[334483854,1723157444454,-200.0,0.00027173,2]
[334483855,1723157444463,-150.0,0.00027185,2]
[334483856,1723157444472,-507.0,0.00027185,2]
[334483857,1723157444481,-1531.749,0.00027185,2]
[334483858,1723157444491,-151.0,0.00027185,7]
[334483859,1723157444501,-151.0,0.00027185,7]
[334483860,1723157444510,-151.0,0.00027185,7]
[334483861,1723157444519,-151.0,0.00027185,7]
[334483862,1723157444528,-151.0,0.000272,7]
[334483863,1723157444537,-151.0,0.000272,7]
[334483864,1723157444547,-151.0,0.000272,7]
[334483865,1723157444560,-151.0,0.000272,7]
[334483866,1723157444569,-151.0,0.000272,7]
[334483867,1723157444578,-151.0,0.000272,7]
[334483868,1723157444588,-152.329468,0.000272,7]
[334483869,1723157444597,-151.0,0.000272,7]
[334483870,1723157444607,-2000.0,0.00027297,2]
[334483871,1723157444617,-73092.18074573,0.000273,2]
[334483872,1723157444630,-16983.71919996,0.000273,2]
[334483873,1723157444639,-288.445402,0.000273,7]
[334483874,1723157444649,-151.0,0.000273,7]
[334483875,1723157444658,-151.0,0.000273,7]
[334483876,1723157444668,-151.0,0.000273,7]
[334483877,1723157444677,-151.0,0.000273,7]
[334483878,1723157444686,-260.2073607,0.00027354,2]
[334483879,1723157444696,-200.0,0.00027373,2]
[334483880,1723157444706,-222.4379991,0.00027396,2]
[334483881,1723157444732,-83.21663462,0.00027396,2]
[334483882,1723157444742,-160.0,0.00027396,10]
[334483883,1723157444752,-435.65805445,0.00027397,11]
[334483884,1723157444858,-25.09708786,0.00027397,11]
[334483942,1723157866793,202.783615,0.00014247,2]
[334483944,1723157942019,206.54114914,0.00014247,2]
[334483945,1723157944432,1314.74615822,0.00014247,2]
[334483946,1723157945905,166.08656695,0.00014247,2]
[334483947,1723157968766,404.34085405,0.00014247,2]
[334483948,1723157987673,1630.23174338,0.00014247,2]
[334483949,1723157991071,4019.47859249,0.00014247,2]
[334483955,1723158349651,532.44950206,9.999e-05,2]
[334483956,1723158352478,269.80506811,0.00014999,2]
[334483957,1723158373275,2180.97444221,9.999e-05,2]
[334483958,1723158391837,196.55713624,9.999e-05,2]
[334483959,1723158394363,155.11816879,9.999e-05,2]
[334483960,1723158399510,166.006384,0.00014247,2]
[334483961,1723158412769,157.28974976,9.999e-05,2]
[334483962,1723158421365,413.12226549,0.0001,2]
[334483963,1723158429822,951.94046237,0.00015,2]
[334483964,1723158431200,196.38173232,0.0001212,2]
[334483965,1723158443056,154.77557542,0.0001212,2]
[334483966,1723158452516,502.95098356,9.999e-05,2]
[334483967,1723158468870,412.68316314,0.0001212,2]
[334483968,1723158507824,273.37336231,9.9e-05,2]
[334483969,1723158522217,845.47187628,0.0001212,2]
[334483970,1723158523543,273.37336231,9.9e-05,2]
[334483992,1723158553117,849.39914621,0.00014691,2]
[334483993,1723158553261,98036.63862713,0.00014691,2]
[334483994,1723158559157,-209.366457,0.0001557,2]
[334483995,1723158559180,-300.0,0.00015602,2]
[334483996,1723158559204,-699.078322,0.00015603,2]
[334484067,1723158634159,-300.0,0.00015602,2]
[334484069,1723158634169,-24200.921678,0.00015603,2]
[334484071,1723158634179,-1383.1311371,0.00015708,2]
[334484073,1723158634189,-601.2071895,0.00015708,2]
[334484076,1723158634201,-1999.975726,0.00015708,2]
[334484078,1723158634213,-487.80585085,0.00015708,2]
[334484080,1723158634223,-788.8751659,0.00015851,2]
[334484082,1723158634232,-685.35012111,0.00015851,2]
[334484084,1723158634242,-172.733503,0.00015859,2]
[334484086,1723158634252,-172.733503,0.00015996,2]
[334484088,1723158634262,-221.27861252,0.00016038,2]
[334484090,1723158634274,-154.77557542,0.00016095,2]
[334484092,1723158634291,-1163.36571829,0.00016095,2]
[334484094,1723158634303,-808.88059479,0.0001611,2]
[334484096,1723158634313,-172.733503,0.00016134,2]
[334484098,1723158634323,-1042.0,0.00016159,2]
[334484101,1723158634333,-172.733503,0.00016272,2]
[334484104,1723158634343,-172.733503,0.0001641,2]
[334484106,1723158634353,-172.733503,0.00016547,2]
[334484108,1723158634363,-172.733503,0.00016685,2]
[334484110,1723158634373,-334.60394603,0.00017,2]
[334484113,1723158634382,-420.0,0.00017163,2]
[334484116,1723158634391,-154.79042439,0.00017269,2]
[334484118,1723158634401,-531.55628012,0.00017403,2]
[334484121,1723158634410,-269.41763114,0.00017555,2]